fUST/lending_fUST_20240423
["ID","MTS","AMOUNT","RATE_DAILY","PERIOD"]
[323251224,1713849038456,-420.0,0.00021996,2]
[323251225,1713849038465,-479.76655013,0.00022,2]
[323251226,1713849038475,-266.76547904,0.00022557,2]
[323251227,1713849038484,-624.73539243,0.00023418,2]
[323251228,1713849038493,-587.0,0.00024195,2]
[323251229,1713849038503,-155.80215728,0.0002441,2]
[323251230,1713849038512,-3843.00057786,0.00024455,2]
[323251231,1713849038521,-2000.0,0.00024457,2]
[323251232,1713849038530,-920.71245137,0.000245,2]
[323251233,1713849038540,-19415.60337448,0.000245,2]
[323251234,1713849038549,-10000.0,0.000245,2]
[323251235,1713849038558,-1071.77042208,0.00024555,2]
[323251236,1713849038567,-812.81715098,0.00024555,2]
[323251237,1713849038576,-155.32129891,0.00024555,2]
[323251238,1713849038585,-199.99436328,0.00024555,2]
[323251239,1713849038594,-263.63082416,0.00024555,2]
[323251240,1713849038604,-44444.0,0.00024557,3]
[323251241,1713849038613,-620.23676962,0.00024589,2]
[323251242,1713849038622,-185.77754814,0.00024599,2]
[323251243,1713849038631,-455.66134652,0.00024599,2]
[323251244,1713849038640,-464.76322749,0.00024599,2]
[323251245,1713849038650,-413.55405589,0.00024599,2]
[323251246,1713849038659,-73954.11470587,0.000246,2]
[323251247,1713849038668,-1000.0,0.000246,2]
[323251248,1713849038677,-400.44915645,0.00024655,2]
[323251249,1713849038686,-155.56702192,0.00024655,2]
[323251250,1713849038695,-200.23441351,0.00024656,2]
[323251251,1713849038704,-332.486455,0.00024656,2]
[323251252,1713849038714,-598.87009035,0.00024656,2]
[323251253,1713849038723,-2787.61107462,0.00024656,2]
[323251255,1713849038732,-531.40828252,0.00024656,2]
[323251257,1713849038742,-522.65616725,0.00024656,2]
[323251259,1713849038753,-894.74347868,0.00024656,2]
[323251261,1713849038765,-151.0,0.00024656,2]
[323251263,1713849038774,-263.068761,0.00024656,2]
[323251265,1713849038783,-85850.34701736,0.00024657,2]
[323251267,1713849038794,-500.83038989,0.00024657,2]
[323251269,1713849038804,-10117.08160631,0.00024657,2]
[323251271,1713849038813,-1256.58685577,0.00024657,2]
[323251273,1713849038822,-154.82968734,0.00024657,2]
[323251274,1713849038834,-386.01178664,0.00024657,2]
[323251276,1713849038843,-151.0,0.00024657,2]
[323251277,1713849038852,-151.0,0.00024657,2]
[323251279,1713849038861,-151.0,0.00024657,2]
[323251281,1713849038871,-151.0,0.00024657,2]
[323251283,1713849038881,-151.0,0.00024657,2]
[323251285,1713849038890,-151.0,0.00024657,2]
[323251287,1713849038899,-151.0,0.00024657,2]
[323251289,1713849038908,-151.235007,0.00024657,2]
[323251291,1713849038917,-390.87076905,0.00024657,2]
[323251293,1713849038926,-500.0,0.00024657,2]
[323251295,1713849038936,-177.41718301,0.00024657,2]
[323251297,1713849038945,-500.0,0.00024657,2]
[323251299,1713849038955,-500.0,0.00024657,2]
[323251301,1713849038963,-502.98719608,0.00024657,2]
[323251303,1713849038972,-500.0,0.00024657,2]
[323251305,1713849038982,-506.77490559,0.00024657,2]
[323251306,1713849038991,-501.5391065,0.00024657,2]
[323251308,1713849039000,-500.33825251,0.00024657,2]
[323251310,1713849039009,-412.28502868,0.00024657,2]
[323251442,1713849040317,-7115.5,0.00024547,3]
[323251444,1713849040327,-490.9040388,0.00024556,2]
[323251446,1713849040336,-500.0,0.00024556,2]
[323251448,1713849040345,-500.0,0.00024556,2]
[323251450,1713849040354,-500.0,0.00024599,2]
[323251452,1713849040363,-500.0,0.00024599,2]
[323251454,1713849040373,-342.77340261,0.00024599,2]
[323251456,1713849040384,-408.65220964,0.00024599,2]
[323251458,1713849040393,-500.0,0.00024599,2]
[323251460,1713849040402,-590.40652048,0.00024599,2]
[323251462,1713849040412,-89.56362208,0.00024657,2]
[323251464,1713849040421,-506.23855429,0.00024657,2]
[323251466,1713849040430,-501.95212734,0.00024657,2]
[323251468,1713849040440,-318.6888901,0.00024657,2]
[323251471,1713849040451,-182.33717311,0.00024657,2]
[323251473,1713849040460,-500.0,0.00024657,2]
[323251475,1713849040470,-503.51892821,0.00024657,2]
[323251477,1713849040480,-500.0,0.00024657,2]
[323251479,1713849040489,-502.77415688,0.00024657,2]
[323251481,1713849040499,-501.90122392,0.00024657,2]
[323251483,1713849040508,-500.0,0.00024657,2]
[323251485,1713849040517,-500.0,0.00024657,2]
[323251487,1713849040528,-500.0,0.00024657,2]
[323251489,1713849040537,-508.59721754,0.00024657,2]
[323251491,1713849040546,-500.0,0.00024657,2]
[323251493,1713849040555,-513.65425115,0.00024657,2]
[323251495,1713849040563,-703.05,0.00024657,2]
[323251497,1713849040573,-500.0,0.00024657,2]
[323251499,1713849040581,-503.85333781,0.00024657,2]
[323251501,1713849040591,-501.06783025,0.00024657,2]
[323251503,1713849040600,-500.0,0.00024657,2]
[323251505,1713849040610,-500.0,0.00024657,2]
[323251507,1713849040619,-500.89068201,0.00024657,2]
[323251508,1713849040634,-510.61468506,0.00024657,2]
[323251510,1713849040646,-501.95098035,0.00024657,2]
[323251512,1713849040655,-503.19335245,0.00024657,2]
[323251514,1713849040665,-151.0,0.00024657,2]
[323251516,1713849040674,-501.7873865,0.00024657,2]
[323251519,1713849040684,-501.54482053,0.00024657,2]
[323251521,1713849040693,-588.06045564,0.00024657,2]
[323251522,1713849040702,-500.59964072,0.00024657,2]
[323251525,1713849040712,-500.0,0.00024657,2]
[323251527,1713849040721,-502.96169557,0.00024657,2]
[323251529,1713849040730,-500.46203693,0.00024657,2]
[323251530,1713849040740,-500.0,0.00024657,2]
[323251532,1713849040751,-173.09207893,0.00024657,2]
[323251534,1713849040765,-151.0,0.00024657,2]
[323251536,1713849040774,-151.0,0.00024657,2]
[323251538,1713849040783,-151.0,0.00024657,2]
[323251540,1713849040792,-151.0,0.00024657,2]
[323251543,1713849040804,-151.0,0.00024657,2]
[323251544,1713849040813,-151.0,0.00024657,2]
[323251546,1713849040823,-151.0,0.00024657,2]
[323251549,1713849040836,-151.0,0.00024657,2]
[323251550,1713849040847,-151.0,0.00024657,2]
[323251552,1713849040857,-507.00416124,0.00024657,2]
[323251555,1713849040867,-506.57115062,0.00024657,2]
[323251557,1713849040877,-500.99493498,0.00024657,2]
[323251558,1713849040886,-503.65356665,0.00024657,2]
[323251560,1713849040895,-500.0,0.00024657,2]
[323251562,1713849040904,-500.0,0.00024657,2]
[323251564,1713849040913,-500.0,0.00024657,2]
[323251566,1713849040922,-500.0,0.00024657,2]
[323251568,1713849040931,-500.0,0.00024657,2]
[323251570,1713849040940,-500.0,0.00024657,2]
[323251572,1713849040949,-500.0,0.00024657,2]
[323251574,1713849040958,-582.36901886,0.00024657,2]
[323251576,1713849040966,-500.0,0.00024657,2]
[323251578,1713849040976,-501.93539608,0.00024657,2]
[323251591,1713849041083,-503.45395007,0.00024657,2]
[323251593,1713849041093,-501.73601306,0.00024657,2]
[323251595,1713849041102,-523.67301972,0.00024657,2]
[323251597,1713849041111,-500.88463856,0.00024657,2]
[323251599,1713849041120,-521.22655881,0.00024657,2]
[323251601,1713849041131,-500.0,0.00024657,2]
[323251603,1713849041142,-509.42891898,0.00024657,2]
[323251605,1713849041151,-503.54773322,0.00024657,2]
[323251607,1713849041160,-2003.38733579,0.00024657,2]
[323251609,1713849041170,-501.36959928,0.00024657,2]
[323251611,1713849041179,-500.0,0.00024657,2]
[323251613,1713849041191,-500.0,0.00024657,2]
[323251615,1713849041201,-500.0,0.00024657,2]
[323251617,1713849041211,-500.0,0.00024657,2]
[323251620,1713849041221,-500.87337947,0.00024657,2]
[323251622,1713849041231,-502.20233836,0.00024657,2]
[323251624,1713849041241,-500.0,0.00024657,2]
[323251626,1713849041250,-200.01273234,0.00024657,2]
[323251628,1713849041259,-500.9308876,0.00024657,2]
[323251629,1713849041269,-502.37916465,0.00024657,2]
[323251631,1713849041279,-500.0,0.00024657,2]
[323251633,1713849041288,-501.69999749,0.00024657,2]
[323251636,1713849041298,-500.49111699,0.00024657,2]
[323251637,1713849041307,-638.94,0.00024657,2]
[323251638,1713849041316,-500.0,0.00024657,2]
[323251639,1713849041325,-500.0,0.00024657,2]
[323251640,1713849041334,-501.0491942,0.00024657,2]
[323251641,1713849041343,-503.80700565,0.00024657,2]
[323251642,1713849041352,-504.92556905,0.00024657,2]
[323251643,1713849041361,-501.04070647,0.00024657,2]
[323251644,1713849041370,-500.0,0.00024657,2]
[323251645,1713849041380,-2115.36016006,0.00024657,2]
[323251646,1713849041389,-774.33,0.00024657,2]
[323251647,1713849041398,-501.41844231,0.00024657,2]
[323251648,1713849041407,-500.0,0.00024657,2]
[323251649,1713849041415,-500.79134659,0.00024657,2]
[323251650,1713849041424,-500.0,0.00024657,2]
[323251651,1713849041434,-500.0,0.00024657,2]
[323251652,1713849041443,-500.0,0.00024657,2]
[323251653,1713849041452,-500.76396161,0.00024657,2]
[323251654,1713849041461,-506.44597155,0.00024657,2]
[323251655,1713849041470,-500.54536768,0.00024657,2]
[323251656,1713849041479,-559.5,0.00024657,2]
[323251657,1713849041487,-500.0,0.00024657,2]
[323251658,1713849041496,-501.72307815,0.00024657,2]
[323251659,1713849041505,-500.0,0.00024657,2]
[323251660,1713849041514,-500.0,0.00024657,2]
[323251661,1713849041522,-505.28574678,0.00024657,2]
[323251662,1713849041531,-500.57790993,0.00024657,2]
[323251663,1713849041541,-502.58048142,0.00024657,2]
[323251664,1713849041549,-500.4579288,0.00024657,2]
[323251665,1713849041558,-500.4883142,0.00024657,2]
[323251666,1713849041567,-503.03340588,0.00024657,2]
[323251667,1713849041575,-501.21926368,0.00024657,2]
[323251668,1713849041585,-500.96142524,0.00024657,2]
[323251669,1713849041594,-500.33624344,0.00024657,2]
[323251670,1713849041602,-500.74366151,0.00024657,2]
[323251671,1713849041614,-501.91750502,0.00024657,2]
[323251672,1713849041622,-504.60718698,0.00024657,2]
[323251673,1713849041631,-239.579414,0.00024657,2]
[323251674,1713849041639,-239.579414,0.00024657,2]
[323251675,1713849041648,-521.55,0.00024657,2]
[323251676,1713849041657,-239.579414,0.00024657,2]
[323251677,1713849041666,-500.0,0.00024657,2]
[323251678,1713849041675,-239.579414,0.00024657,2]
[323251679,1713849041684,-150.16702039,0.00024657,2]
[323251680,1713849041693,-239.579414,0.00024657,2]
[323251681,1713849041701,-239.579414,0.00024657,2]
[323251682,1713849041710,-239.579414,0.00024657,2]
[323251683,1713849041720,-500.0,0.00024657,2]
[323251684,1713849041729,-239.579414,0.00024657,2]
[323251685,1713849041738,-239.579414,0.00024657,2]
[323251687,1713849041748,-502.66553978,0.00024657,2]
[323251689,1713849041760,-239.579414,0.00024657,2]
[323251690,1713849041769,-500.0,0.00024657,2]
[323251691,1713849041778,-754.25,0.00024657,2]
[323251692,1713849041788,-239.579414,0.00024657,2]
[323251693,1713849041798,-239.579414,0.00024657,2]
[323251694,1713849041808,-239.579414,0.00024657,2]
[323251695,1713849041818,-239.579414,0.00024657,2]
[323251696,1713849041827,-239.579414,0.00024657,2]
[323251697,1713849041837,-239.579414,0.00024657,2]
[323251698,1713849041847,-500.78838275,0.00024657,2]
[323251699,1713849041856,-500.0,0.00024657,2]
[323251700,1713849041866,-239.579414,0.00024657,2]
[323251701,1713849041875,-239.579414,0.00024657,2]
[323251702,1713849041885,-239.579414,0.00024657,2]
[323251703,1713849041895,-239.579411,0.00024657,2]
[323251704,1713849041904,-151.0,0.00024657,2]
[323251705,1713849041913,-151.0,0.00024657,2]
[323251706,1713849041923,-500.0,0.00024657,2]
[323251707,1713849041932,-151.0,0.00024657,2]
[323251708,1713849041941,-151.0,0.00024657,2]
[323251709,1713849041950,-151.0,0.00024657,2]
[323251710,1713849041959,-151.0,0.00024657,2]
[323251711,1713849041969,-500.99190795,0.00024657,2]
[323251712,1713849041978,-151.0,0.00024657,2]
[323251713,1713849041987,-151.0,0.00024657,2]
[323251714,1713849041996,-7364.36573569,0.00024657,2]
[323251715,1713849042005,-151.0,0.00024657,2]
[323251716,1713849042014,-151.0,0.00024657,2]
[323251717,1713849042023,-294.052499,0.00024657,2]
[323251718,1713849042032,-500.0,0.00024657,2]
[323251719,1713849042041,-500.0,0.00024657,2]
[323251720,1713849042051,-501.23957139,0.00024657,2]
[323251721,1713849042060,-500.0,0.00024657,2]
[323251722,1713849042069,-213.31290659,0.00024657,2]
[323251723,1713849042078,-503.95935748,0.00024657,2]
[323251724,1713849042087,-500.0,0.00024657,2]
[323251725,1713849042097,-501.67538405,0.00024657,2]
[323251726,1713849042107,-623.45220294,0.00024657,2]
[323251727,1713849042117,-500.0,0.00024657,2]
[323251728,1713849042126,-500.0,0.00024657,2]
[323251729,1713849042137,-501.92522503,0.00024657,2]
[323251730,1713849042146,-500.0,0.00024657,2]
[323251731,1713849042156,-502.33911414,0.00024657,2]
[323251732,1713849042165,-387.3328185,0.00024657,2]
[323251733,1713849042174,-509.93919444,0.00024657,2]
[323251734,1713849042183,-500.0,0.00024657,2]
[323251735,1713849042192,-500.41705876,0.00024657,2]
[323251736,1713849042201,-500.78417883,0.00024657,2]
[323251737,1713849042211,-500.0,0.00024657,2]
[323251738,1713849042221,-500.39511632,0.00024657,2]
[323251739,1713849042230,-547.51,0.00024657,2]
[323251740,1713849042240,-500.0,0.00024657,2]
[323251741,1713849042249,-500.0,0.00024657,2]
[323251742,1713849042258,-504.30450265,0.00024657,2]
[323251743,1713849042268,-500.0,0.00024657,2]
[323251744,1713849042277,-500.0,0.00024657,2]
[323251745,1713849042286,-500.0,0.00024657,2]
[323251746,1713849042295,-500.0,0.00024657,2]
[323251747,1713849042304,-296.839859,0.00024657,2]
[323251748,1713849042314,-296.8398625,0.00024657,2]
[323251749,1713849042323,-500.0,0.00024657,2]
[323251750,1713849042333,-500.0,0.00024657,2]
[323251751,1713849042342,-500.0,0.00024657,2]
[323251752,1713849042352,-151.0,0.00024657,2]
[323251753,1713849042361,-151.877114,0.00024657,2]
[323251754,1713849042371,-503.59515724,0.00024657,2]
[323251755,1713849042381,-510.27314984,0.00024657,2]
[323251756,1713849042391,-500.0,0.00024657,2]
[323251757,1713849042400,-500.0,0.00024657,2]
[323251758,1713849042409,-500.0,0.00024657,2]
[323251759,1713849042418,-500.0,0.00024657,2]
[323251760,1713849042427,-506.24756872,0.00024657,2]
[323251761,1713849042436,-504.62336992,0.00024657,2]
[323251762,1713849042445,-520.86630522,0.00024657,2]
[323251763,1713849042454,-500.0,0.00024657,2]
[323251764,1713849042463,-500.0,0.00024657,2]
[323251765,1713849042471,-528.2725877,0.00024657,2]
[323251766,1713849042481,-500.0,0.00024657,2]
[323251767,1713849042491,-507.49136665,0.00024657,2]
[323251768,1713849042500,-703.83,0.00024657,2]
[323251769,1713849042509,-151.0,0.00024657,2]
[323251770,1713849042518,-455.09226751,0.00024657,2]
[323251771,1713849042528,-247.258611,0.00024657,2]
[323251772,1713849042537,-553.32709877,0.00024657,2]
[323251773,1713849042546,-500.0,0.00024657,2]
[323251775,1713849042554,-500.0,0.00024657,2]
[323251777,1713849042563,-500.0,0.00024657,2]
[323251778,1713849042572,-761.71,0.00024657,2]
[323251779,1713849042580,-500.0,0.00024657,2]
[323251780,1713849042589,-1087.91,0.00024657,2]
[323251781,1713849042598,-500.0,0.00024657,2]
[323251782,1713849042607,-151.0,0.00024657,2]
[323251785,1713849042617,-151.0,0.00024657,2]
[323251786,1713849042626,-151.0,0.00024657,2]
[323251789,1713849042637,-151.0,0.00024657,2]
[323251790,1713849042648,-151.0,0.00024657,2]
[323251794,1713849042658,-151.0,0.00024657,2]
[323251795,1713849042667,-151.0,0.00024657,2]
[323251797,1713849042676,-151.0,0.00024657,2]
[323251799,1713849042685,-151.0,0.00024657,2]
[323251802,1713849042694,-374.40571692,0.00024657,2]
[323251804,1713849042703,-500.0,0.00024657,2]
[323251805,1713849042713,-500.0,0.00024657,2]
[323251806,1713849042722,-500.0,0.00024657,2]
[323251807,1713849042730,-151.0,0.00024657,2]
[323251808,1713849042739,-151.0,0.00024657,2]
[323251809,1713849042750,-151.0,0.00024657,2]
[323251810,1713849042761,-151.0,0.00024657,2]
[323251812,1713849042770,-151.0,0.00024657,2]
[323251813,1713849042779,-151.0,0.00024657,2]
[323251816,1713849042788,-151.0,0.00024657,2]
[323251819,1713849042798,-151.0,0.00024657,2]
[323251822,1713849042807,-151.0,0.00024657,2]
[323251824,1713849042818,-500.0,0.00024657,2]
[323251826,1713849042827,-151.0,0.00024657,2]
[323251828,1713849042839,-151.0,0.00024657,2]
[323251829,1713849042850,-151.0,0.00024657,2]
[323251830,1713849042859,-151.0,0.00024657,2]
[323251831,1713849042867,-290.277097,0.00024657,2]
[323251832,1713849042877,-300.257287,0.00024657,2]
[323251833,1713849042887,-300.257287,0.00024657,2]
[323251834,1713849042896,-300.257287,0.00024657,2]
[323251835,1713849042905,-500.0,0.00024657,2]
[323251836,1713849042914,-300.257287,0.00024657,2]
[323251837,1713849042924,-300.257287,0.00024657,2]
[323251838,1713849042933,-300.257287,0.00024657,2]
[323251839,1713849042943,-300.257287,0.00024657,2]
[323251840,1713849042952,-500.0,0.00024657,2]
[323251841,1713849042961,-300.257287,0.00024657,2]
[323251842,1713849042970,-300.257287,0.00024657,2]
[323251843,1713849042979,-300.257287,0.00024657,2]
[323251844,1713849042988,-500.0,0.00024657,2]
[323251845,1713849042998,-300.257287,0.00024657,2]
[323251846,1713849043007,-500.0,0.00024657,2]
[323251847,1713849043017,-300.257287,0.00024657,2]
[323251848,1713849043026,-300.257287,0.00024657,2]
[323251849,1713849043035,-300.257287,0.00024657,2]
[323251850,1713849043045,-300.257287,0.00024657,2]
[323251851,1713849043054,-300.257287,0.00024657,2]
[323251852,1713849043063,-300.257287,0.00024657,2]
[323251853,1713849043072,-300.257287,0.00024657,2]
[323251854,1713849043081,-300.257287,0.00024657,2]
[323251855,1713849043090,-300.257289,0.00024657,2]
[323251856,1713849043099,-699.35,0.00024657,2]
[323251857,1713849043108,-500.0,0.00024657,2]
[323251858,1713849043117,-500.0,0.00024657,2]
[323251859,1713849043126,-500.0,0.00024657,2]
[323251860,1713849043224,-151.0,0.00024657,2]
[323251861,1713849043234,-155.755622,0.00024657,2]
[323251862,1713849043244,-731.19,0.00024657,2]
[323251863,1713849043253,-2160.34,0.00024657,2]
[323251864,1713849043262,-500.0,0.00024657,2]
[323251865,1713849043271,-500.0,0.00024657,2]
[323251866,1713849043280,-2184.01,0.00024657,2]
[323251867,1713849043290,-500.0,0.00024657,2]
[323251868,1713849043299,-500.0,0.00024657,2]
[323251869,1713849043309,-500.0,0.00024657,2]
[323251870,1713849043318,-500.0,0.00024657,2]
[323251871,1713849043327,-500.0,0.00024657,2]
[323251872,1713849043336,-500.0,0.00024657,2]
[323251874,1713849043345,-500.0,0.00024657,2]
[323251876,1713849043354,-500.0,0.00024657,2]
[323251877,1713849043363,-500.0,0.00024657,2]
[323251878,1713849043372,-500.0,0.00024657,2]
[323251880,1713849043383,-500.0,0.00024657,2]
[323251881,1713849043392,-151.568898,0.00024657,2]
[323251882,1713849043401,-500.0,0.00024657,2]
[323251883,1713849043410,-500.0,0.00024657,2]
[323251884,1713849043420,-500.0,0.00024657,2]
[323251885,1713849043428,-500.0,0.00024657,2]
[323251886,1713849043437,-500.0,0.00024657,2]
[323251887,1713849043446,-500.0,0.00024657,2]
[323251888,1713849043456,-500.0,0.00024657,2]
[323251889,1713849043465,-500.0,0.00024657,2]
[323251890,1713849043474,-517.65754486,0.00024657,2]
[323251891,1713849043482,-500.0,0.00024657,2]
[323251892,1713849043491,-974.87,0.00024657,2]
[323251893,1713849043500,-500.0,0.00024657,2]
[323251894,1713849043510,-501.19297863,0.00024657,2]
[323251895,1713849043519,-500.0,0.00024657,2]
[323251896,1713849043528,-1094.07,0.00024657,2]
[323251897,1713849043537,-1914.106422,0.00024657,2]
[323251898,1713849043546,-1914.106422,0.00024657,2]
[323251899,1713849043555,-1914.106422,0.00024657,2]
[323251900,1713849043563,-1914.106422,0.00024657,2]
[323251901,1713849043572,-1914.106422,0.00024657,2]
[323251902,1713849043581,-1914.106422,0.00024657,2]
[323251903,1713849043590,-1914.106422,0.00024657,2]
[323251904,1713849043599,-1914.106422,0.00024657,2]
[323251905,1713849043608,-155.308275,0.00024657,2]
[323251906,1713849043617,-1914.106422,0.00024657,2]
[323251907,1713849043627,-1914.106422,0.00024657,2]
[323251908,1713849043637,-1914.106422,0.00024657,2]
[323251909,1713849043646,-500.0,0.00024657,2]
[323251910,1713849043659,-1914.106422,0.00024657,2]
[323251911,1713849043669,-1914.106422,0.00024657,2]
[323251912,1713849043678,-1914.106422,0.00024657,2]
[323251913,1713849043687,-1914.106422,0.00024657,2]
[323251914,1713849043696,-1914.106422,0.00024657,2]
[323251915,1713849043705,-1914.106422,0.00024657,2]
[323251916,1713849043715,-1914.106422,0.00024657,2]
[323251917,1713849043724,-667.93,0.00024657,2]
[323251918,1713849043734,-1914.106422,0.00024657,2]
[323251919,1713849043744,-500.0,0.00024657,2]
[323251920,1713849043757,-1914.106424,0.00024657,2]
[323251921,1713849043767,-500.0,0.00024657,2]
[323251922,1713849043777,-500.0,0.00024657,2]
[323251923,1713849043787,-500.0,0.00024657,2]
[323251924,1713849043797,-505.22560722,0.00024657,2]
[323251925,1713849043807,-501.11342184,0.00024657,2]
[323251926,1713849043816,-581.30344202,0.00024657,2]
[323251927,1713849043828,-519.43,0.00024657,2]
[323251928,1713849043838,-659.77,0.00024657,2]
[323251929,1713849043847,-650.08,0.00024657,2]
[323251930,1713849043857,-500.37777246,0.00024657,2]
[323251931,1713849043867,-489.59042332,0.00024657,2]
[323251932,1713849043876,-500.0,0.00024657,2]
[323251933,1713849043887,-501.97383144,0.00024657,2]
[323251934,1713849043896,-585.62,0.00024657,2]
[323251935,1713849043905,-512.21507158,0.00024657,2]
[323251936,1713849043915,-500.0,0.00024657,2]
[323251937,1713849043925,-502.34045167,0.00024657,2]
[323251938,1713849043935,-500.0,0.00024657,2]
[323251939,1713849043945,-535.28358735,0.00024657,2]
[323251940,1713849043954,-500.68030474,0.00024657,2]
[323251941,1713849043964,-733.38,0.00024657,2]
[323251942,1713849043973,-2227.15,0.00024657,2]
[323251943,1713849043982,-1178.0,0.00024657,2]
[323251944,1713849043991,-501.96053296,0.00024657,2]
[323251945,1713849044000,-500.0,0.00024657,2]
[323251946,1713849044009,-500.0,0.00024657,2]
[323251947,1713849044018,-500.0,0.00024657,2]
[323251948,1713849044027,-536.01501714,0.00024657,2]
[323251949,1713849044036,-510.10246319,0.00024657,2]
[323251950,1713849044045,-500.0,0.00024657,2]
[323251951,1713849044055,-541.8775232,0.00024657,2]
[323251952,1713849044064,-500.0,0.00024657,2]
[323251953,1713849044073,-503.30035236,0.00024657,2]
[323251954,1713849044083,-500.47446594,0.00024657,2]
[323251955,1713849044093,-500.0,0.00024657,2]
[323251956,1713849044102,-11117.57,0.00024657,2]
[323251957,1713849044112,-545.56,0.00024657,2]
[323251958,1713849044121,-509.7045974,0.00024657,2]
[323251959,1713849044131,-500.0,0.00024657,2]
[323251960,1713849044141,-536.20230502,0.00024657,2]
[323251961,1713849044150,-524.91606597,0.00024657,2]
[323251962,1713849044160,-505.375496,0.00024657,2]
[323251963,1713849044169,-505.375496,0.00024657,2]
[323251964,1713849044178,-505.375496,0.00024657,2]
[323251965,1713849044187,-500.0,0.00024657,2]
[323251966,1713849044197,-505.375496,0.00024657,2]
[323251967,1713849044207,-502.20559044,0.00024657,2]
[323251968,1713849044219,-505.375496,0.00024657,2]
[323251969,1713849044229,-505.375496,0.00024657,2]
[323251970,1713849044241,-505.375496,0.00024657,2]
[323251971,1713849044252,-505.375496,0.00024657,2]
[323251972,1713849044261,-505.375496,0.00024657,2]
[323251973,1713849044271,-505.375496,0.00024657,2]
[323251974,1713849044281,-505.375496,0.00024657,2]
[323251975,1713849044290,-505.375496,0.00024657,2]
[323251976,1713849044301,-505.375496,0.00024657,2]
[323251977,1713849044311,-505.375496,0.00024657,2]
[323251978,1713849044321,-505.375496,0.00024657,2]
[323251979,1713849044330,-505.375496,0.00024657,2]
[323251980,1713849044340,-505.375496,0.00024657,2]
[323251981,1713849044350,-505.375496,0.00024657,2]
[323251982,1713849044360,-505.375496,0.00024657,2]
[323251983,1713849044370,-505.375494,0.00024657,2]
[323251984,1713849044382,-577.89,0.00024657,2]
[323251985,1713849044391,-2575.82,0.00024657,2]
[323251986,1713849044402,-500.0,0.00024657,2]
[323251987,1713849044412,-559.20469861,0.00024657,2]
[323251988,1713849044422,-500.0,0.00024657,2]
[323251989,1713849044432,-1701.1,0.00024657,2]
[323251990,1713849044441,-151.0,0.00024657,2]
[323251991,1713849044450,-151.0,0.00024657,2]
[323251992,1713849044460,-151.0,0.00024657,2]
[323251993,1713849044470,-151.0,0.00024657,2]
[323251994,1713849044480,-151.0,0.00024657,2]
[323251995,1713849044489,-151.0,0.00024657,2]
[323251996,1713849044499,-2303.66,0.00024657,2]
[323251997,1713849044508,-151.0,0.00024657,2]
[323251998,1713849044518,-500.0,0.00024657,2]
[323251999,1713849044527,-233.063019,0.00024657,2]
[323252000,1713849044536,-500.0,0.00024657,2]
[323252001,1713849044546,-500.0,0.00024657,2]
[323252002,1713849044555,-536.76674979,0.00024657,2]
[323252003,1713849044564,-500.0,0.00024657,2]
[323252004,1713849044574,-500.0,0.00024657,2]
[323252005,1713849044583,-500.0,0.00024657,2]
[323252006,1713849044593,-500.0,0.00024657,2]
[323252007,1713849044602,-500.0,0.00024657,2]
[323252008,1713849044613,-607.95427411,0.00024657,2]
[323252009,1713849044624,-500.0,0.00024657,2]
[323252010,1713849044653,-500.0,0.00024657,2]
[323252011,1713849044662,-500.0,0.00024657,2]
[323252012,1713849044671,-154.82968734,0.00024657,2]
[323252013,1713849044681,-505.17927863,0.00024657,2]